{"text_format":"1","workbook":"xlsx","n_sheets":4,"sheets":["ТМЦ","ПРИХОД за месяц","_Config_","_Names_"],"not_rendered":{"charts":0,"images":0,"macros":1,"external_links":0,"defined_names":2,"comments":0,"pivot_tables":0},"unopened":[],"bounds":{"document_bytes":16777216,"sheet_cells":100000,"rows_first":2000,"rows_last":500,"rows_between":2000,"halvings":0,"cell_chars":16384,"cell_head_chars":4096},"cells_cut":0,"cells_raw":0,"read":"whole","date_system":"1900"}

{"sheet":"ТМЦ","index":0,"n_rows":60,"n_cols":13,"rows_kept":60,"cut":false,"hidden":true,"merged":[]}
[null,null,null,"подотчетные МОИ"]
[]
["ном №",null,null,"наименование ",null,null,null,"код","ед. изм","кол-во","цена","сумма","дата"]
[2379480009,3,null,"ЛЕНТА САМОКЛЕЮЩАЯСЯ","LUXTAPE",null,"50Х90",796,"шт",1,200,{"$f":"J4*K4","v":200},"2018-08-01"]
[2332190029,9,null,"ПАСТА КОЛЕРНАЯ","ПАЛИТРА",null,"100МЛ СИНИЙ",796,"шт",3,40,{"$f":"J5*K5","v":120},"2018-08-01"]
[1650001811,9,null,"ВИНТ САМОНАРЕЗАЮЩИЙ","ULTRAFIX",null,"3,5Х35",796,"шт",500,0.45,{"$f":"J6*K6","v":225},"2018-08-01"]
[1271100119,3,null,"ДЮБЕЛЬ-ГВОЗДЬ","WKRET-MET SMK",null,"6Х40",796,"шт",200,1.5,{"$f":"J7*K7","v":300},"2018-08-03"]
[9693100417,9,null,"ПОДВЕС ПРЯМОЙ ДЛЯ ГИПСОКАРТОНА","АРТ.3052",null,"300Х30Х0,6 DОТВ=4/6 КРОКОДИЛ",796,"шт",100,4,{"$f":"J8*K8","v":400},"2018-08-06"]
[2313940019,9,null,"ЗАТИРКА ДЛЯ ШВОВ","EK F-100","ТУ 5745-026-47532402-05","2КГ БЕЛЫЙ",796,"шт",2,165,330,"2018-08-06"]
[5767730005,9,null,"ГИПСОКАРТОН ЛИСТОВОЙ","ТИГИ-КНАУФ",null,"2500Х1200Х9.5",796,"шт",10,295,2950,"2018-08-07"]
[2248120352,3,null,"ТРОЙНИК ПОЛИПРОПИЛЕНОВЫЙ ДЛЯ ТРУБ","PILSA PPYT20",null,"ДУ=20 БЕЛЫЙ",796,"шт",2,6.5,13,"2018-08-08"]
[2248120234,3,null,"УГОЛЬНИК ПОЛИПРОПИЛЕНОВЫЙ","TEBO 015030101",null,"20 90ГРАДУСОВ",796,"шт",10,4.5,45,"2018-08-08"]
[2248120272,9,null,"УГОЛЬНИК ПОЛИПРОПИЛЕНОВЫЙ","PRO AQUA PP-R","ТУ 2248-032-00284581-98","D20 90ГРАДУСОВ",796,"шт",5,4,20,"2018-08-08"]
[2248120265,3,null,"КРЕПЛЕНИЕ ПОЛИПРОПИЛЕНОВОЕ","FIRAT 7B33000020",null,"20ММ",796,"шт",10,2.5,25,"2018-08-08"]
[2248130079,9,null,"ГОФРА ДЛЯ УНИТАЗА С ВЫХОДОМ","АНИ К 821",null,110,796,"шт",1,133,133,"2018-08-08"]
[4951710001,3,null,"СИФОН БУТЫЛОЧНЫЙ ДЛЯ РАКОВИНЫ","HATRIA 0421.0051",null,"ХРОМ",796,"шт",1,200,200,"2018-08-08"]
[2248120070,9,null,"ТРУБА НАПОРНАЯ ПОЛИПРОПИЛЕНОВАЯ","ПП","ТУ 38.102.100-89","20Х1,9 1МПА",6,"м",4,37,148,"2018-08-08"]
[2248120089,9,null,"ОТВОД КАНАЛИЗАЦИОННЫЙ ИЗ ПОЛИПРОПИЛЕНА",null,null,"50 87ГРАДУСОВ",796,"шт",1,15,15,"2018-08-08"]
[2248110017,9,null,"ТРУБА КАНАЛИЗАЦИОННАЯ ПП 110*1500 ",null,null,"110Х1500",796,"шт",1,79,79,"2018-08-08"]
[4951140011,3,null,"СМЕСИТЕЛЬ ДЛЯ РАКОВИНЫ","RODDEX",null,null,796,"шт",1,500,500,"2018-08-08"]
[2379480157,3,null,"ЛЕНТА САМОКЛЕЮЩАЯСЯ","MECO 01410",null,"15Х250",796,"шт",1,90,90,"2018-08-13"]
[3187895231,3,null,"ЗАМОК ВИСЯЧИЙ","GEGE610/50 SPERRE 1",null,null,796,"шт",1,204,204,"2018-08-13"]
[4981110111,3,null,"ЗАМОК ВИСЯЧИЙ","APECS PD-01-38",null,null,796,"шт",1,135,135,"2018-08-13"]
[2332190014,3,null,"ПАСТА КОЛЕРНАЯ","JOBI",null,"ЗЕЛЕНОЕ ЯБЛОКО",796,"шт",6,50,300,"2018-08-13"]
[2559290005,9,null,"ШЛАНГ РЕЗИНОВЫЙ","VEIT EPDM",null,"7,5Х3,5-1,5МПА",6,"м",15,120,1800,"2018-08-14"]
[5275220014,9,null,"ПОРОГ-СТЫК АЛЮМИНИЕВЫЙ ДЛЯ НАПОЛЬНЫХ ПОКРЫТИЙ","АЛ-163",null,"28Х1000 БУК",796,"шт",3,200,600,"2018-08-15"]
[2312221732,9,null,"ЭМАЛЬ ДЛЯ РАДИАТОРОВ ГЛЯНЦЕВАЯ 400мл","ЛАКРА","ТУ 2312-081-45860602-2010","1КГ БЕЛЫЙ",796,"шт",2,215,430,"2018-08-17"]
[2248120090,9,null,"ОТВОД КАНАЛИЗАЦИОННЫЙ ИЗ ПОЛИПРОПИЛЕНА",null,null,"110 87ГРАДУСОВ",796,"шт",2,85,170,"2018-08-17"]
[2248200007,9,null,"ТРУБА ДЛЯ НАРУЖНОЙ КАНАЛИЗАЦИИ","POLYTRON ПВХ","ТУ 2248-043-00284571-2000","50Х2000",796,"шт",5,505,2525,"2018-08-17"]
[2313920103,9,null,"ГРУНТ-ЭМАЛЬ ПО РЖАВЧИНЕ","ТЕКС РЖАВО STOP",null,"0,9КГ СЕРЫЙ",796,"шт",1,278,278,"2018-08-20"]
[2319100001,3,null,"РАСТВОРИТЕЛЬ","PRINT PRODUCT D-LIMONENE",null,"250МЛ",796,"шт",2,50,100,"2018-08-20"]
[4923200055,3,null,"СГОН ПРЯМОЙ","VALTEC VTR 341",null,"1ДЮЙМ ВР-НР",796,"шт",1,40,40,"2018-08-20"]
[1462000800,9,null,"СГОН СТАЛЬНОЙ С ЦИЛИНДРИЧЕСКОЙ РЕЗЬБОЙ",null,"ГОСТ 8969-75","DУ=50 L=17/65/150 2ДЮЙМА 1,6МПА",796,"шт",2,15,30,"2018-08-20"]
[1680002347,9,null,"КОНТРГАЙКА","8ТН.940.018-01",null,"1ДЮЙМ",796,"шт",1,15,15,"2018-08-20"]
[2248120208,3,null,"МУФТА ПРЯМАЯ","PRO AQUA PP-R PA12010P",null,25,796,"шт",1,45,45,"2018-08-20"]
[1468100069,9,null,"ОТВОД СТАЛЬНОЙ КРУТОИЗОГНУТЫЙ","ИСПОЛНЕНИЕ 2","ГОСТ 30753-2001","25Х3.2 90ГРАДУСОВ",796,"шт",2,29,58,"2018-08-20"]
[1468106002,9,null,"ОТВОД СТАЛЬНОЙ КРУТОИЗОГНУТЫЙ","ИСПОЛНЕНИЕ 2 СТ20","ГОСТ 17375-2001","325Х10 90ГРАДУСОВ",796,"шт",2,20,40,"2018-08-20"]
[8112110013,9,null,"ЛЕН САНТЕХНИЧЕСКИЙ","ЭКСТРА","ГОСТ 10330-76","100Г",796,"шт",5,20,100,"2018-08-20"]
[2293190191,9,null,"КЮВЕТА ПЛАСТМАССОВАЯ ДЛЯ КРАСКИ",null,null,"330Х350",796,"шт",1,60,60,"2018-08-20"]
[9677510048,9,null,"КИСТЬ МАЛЯРНАЯ ПЛОСКАЯ","КП-25",null,null,796,"шт",2,60,120,"2018-08-20"]
[9677510049,9,null,"КИСТЬ МАЛЯРНАЯ ПЛОСКАЯ","КП-50",null,null,796,"шт",2,70,140,"2018-08-20"]
[9677510221,3,null,"ВАЛИК МАЛЯРНЫЙ ПОЛИАКРИЛ","WORKMAN",null,180,796,"шт",4,145,580,"2018-08-20"]
[9693100417,9,null,"ПОДВЕС ПРЯМОЙ ДЛЯ ГИПСОКАРТОНА","АРТ.3052",null,"300Х30Х0,6 DОТВ=4/6 КРОКОДИЛ",796,"шт",30,10,300,"2018-08-21"]
[1650001173,9,null,"ВИНТ САМОНАРЕЗАЮЩИЙ",null,null,"2,5Х12 ЖЕЛТЫЙ",166,"кг",0.56999999999999995,350,199.49999999999997,"2018-08-23"]
[9692810024,3,null,"СКОБЫ ДЛЯ СТЕПЛЕРА","KW-TRIO 023F",null,"№23/15 1000ШТ",796,"шт",1,145,145,"2018-08-23"]
[2293110081,9,null,"ПАКЕТ ПОЛИЭТИЛЕНОВЫЙ ФАСОВОЧНЫЙ",null,null,"200Х280",796,"шт",1,1.4,1.4,"2018-08-23"]
[1650000171,9,null,"ВИНТ САМОНАРЕЗАЮЩИЙ ДЛЯ ГИПСОКАРТОНА","ГКЛ",null,"5,5Х51",166,"кг",0.25,470,117.5,"2018-08-23"]
[4573750014,9,null,"РЕЛЕ ВТЯГИВАЮЩЕЕ СТАРТЕРА","СТ230Б2-3708820","УАЗ-451, УАЗ-452",null,796,"шт",1,1845,1845,"2018-08-23"]
[2311220052,9,null,"ЛАК ПАРКЕТНЫЙ","ПФ-283","ГОСТ 5470-75","0,5Л",796,"шт",1,185,{"$f":"J49*K49","v":185},"2018-08-24"]
[2293190191,9,null,"КЮВЕТА ПЛАСТМАССОВАЯ ДЛЯ КРАСКИ",null,null,"330Х350",796,"шт",1,60,{"$f":"J50*K50","v":60},"2018-08-24"]
[9677510050,9,null,"КИСТЬ МАЛЯРНАЯ ПЛОСКАЯ","КП-63",null,null,796,"шт",1,135,{"$f":"J51*K51","v":135},"2018-08-24"]
[9677510221,3,null,"ВАЛИК МАЛЯРНЫЙ ПОЛИАКРИЛ","WORKMAN",null,180,796,"шт",1,145,{"$f":"J52*K52","v":145},"2018-08-24"]
[3468550155,3,null,"ПУШКА ТЕПЛОВАЯ","BALLU BHP-5.000C",null,"5/3КВТ 400М3/Ч 220В",796,"шт",1,4490,4490,"2018-08-27"]
[2322900071,9,null,"ПАСТА КОЛЕРОВОЧНАЯ УНИВЕРСАЛЬНАЯ","ПАЛИЖ СТАНДАРТ № 18","ТУ 2316-001-49630959-02","100МЛ ЧЕРНЫЙ",796,"шт",4,40,160,"2018-08-28"]
[2282800088,9,null,"СЕТКА МОСКИТНАЯ","АРТ.000795",null,"2030Х500",796,"шт",2,300,600,"2018-08-28"]
[2248120313,3,null,"МУФТА ПОЛИПРОПИЛЕНОВАЯ СОЕДИНИТЕЛЬНАЯ","TEBO (30/390) 48802",null,32,796,"шт",6,9,{"$f":"J56*K56","v":54},"2018-08-30"]
[null,null,null,null,null,null,null,null,null,null,null,{"$f":"J57*K57","v":0}]
[null,null,null,null,null,null,null,null,null,null,null,{"$f":"J58*K58","v":0}]
[null,null,null,null,null,null,null,null,null,null,"итого",{"$f":"SUM(L4:L58)","v":22000.400000000001}]
[null,null,null,null,null,null,null,null,null,null,"остаток",{"$f":"22000-L59","v":-0.40000000000145519}]

{"sheet":"ПРИХОД за месяц","index":1,"n_rows":98,"n_cols":97,"rows_kept":98,"cut":false,"hidden":false,"merged":[[96,80,96,94],[97,5,97,14],[97,16,97,25],[97,28,97,42],[97,61,97,70],[97,72,97,79],[97,80,97,94],[96,0,96,4],[96,5,96,14],[96,16,96,25],[96,28,96,42],[96,61,96,70],[96,72,96,79],[94,37,94,43],[94,45,94,52],[94,53,94,60],[94,61,94,68],[94,69,94,76],[94,77,94,84],[93,53,93,60],[93,61,93,68],[93,69,93,76],[93,77,93,84],[93,85,93,88],[93,89,93,95],[93,0,93,22],[93,23,93,28],[93,29,93,31],[93,32,93,36],[93,37,93,44],[93,45,93,52],[92,53,92,60],[92,61,92,68],[92,69,92,76],[92,77,92,84],[92,85,92,88],[92,89,92,95],[92,0,92,22],[92,23,92,28],[92,29,92,31],[92,32,92,36],[92,37,92,44],[92,45,92,52],[91,53,91,60],[91,61,91,68],[91,69,91,76],[91,77,91,84],[91,85,91,88],[91,89,91,95],[91,0,91,22],[91,23,91,28],[91,29,91,31],[91,32,91,36],[91,37,91,44],[91,45,91,52],[90,53,90,60],[90,61,90,68],[90,69,90,76],[90,77,90,84],[90,85,90,88],[90,89,90,95],[90,0,90,22],[90,23,90,28],[90,29,90,31],[90,32,90,36],[90,37,90,44],[90,45,90,52],[89,53,89,60],[89,61,89,68],[89,69,89,76],[89,77,89,84],[89,85,89,88],[89,89,89,95],[89,0,89,22],[89,23,89,28],[89,29,89,31],[89,32,89,36],[89,37,89,44],[89,45,89,52],[88,53,88,60],[88,61,88,68],[88,69,88,76],[88,77,88,84],[88,85,88,88],[88,89,88,95],[88,0,88,22],[88,23,88,28],[88,29,88,31],[88,32,88,36],[88,37,88,44],[88,45,88,52],[87,53,87,60],[87,61,87,68],[87,69,87,76],[87,77,87,84],[87,85,87,88],[87,89,87,95],[87,0,87,22],[87,23,87,28],[87,29,87,31],[87,32,87,36],[87,37,87,44],[87,45,87,52],[86,53,86,60],[86,61,86,68],[86,69,86,76],[86,77,86,84],[86,85,86,88],[86,89,86,95],[86,0,86,22],[86,23,86,28],[86,29,86,31],[86,32,86,36],[86,37,86,44],[86,45,86,52],[85,53,85,60],[85,61,85,68],[85,69,85,76],[85,77,85,84],[85,85,85,88],[85,89,85,95],[85,0,85,22],[85,23,85,28],[85,29,85,31],[85,32,85,36],[85,37,85,44],[85,45,85,52],[84,53,84,60],[84,61,84,68],[84,69,84,76],[84,77,84,84],[84,85,84,88],[84,89,84,95],[84,0,84,22],[84,23,84,28],[84,29,84,31],[84,32,84,36],[84,37,84,44],[84,45,84,52],[83,53,83,60],[83,61,83,68],[83,69,83,76],[83,77,83,84],[83,85,83,88],[83,89,83,95],[83,0,83,22],[83,23,83,28],[83,29,83,31],[83,32,83,36],[83,37,83,44],[83,45,83,52],[82,53,82,60],[82,61,82,68],[82,69,82,76],[82,77,82,84],[82,85,82,88],[82,89,82,95],[82,0,82,22],[82,23,82,28],[82,29,82,31],[82,32,82,36],[82,37,82,44],[82,45,82,52],[81,53,81,60],[81,61,81,68],[81,69,81,76],[81,77,81,84],[81,85,81,88],[81,89,81,95],[81,0,81,22],[81,23,81,28],[81,29,81,31],[81,32,81,36],[81,37,81,44],[81,45,81,52],[80,53,80,60],[80,61,80,68],[80,69,80,76],[80,77,80,84],[80,85,80,88],[80,89,80,95],[80,0,80,22],[80,23,80,28],[80,29,80,31],[80,32,80,36],[80,37,80,44],[80,45,80,52],[79,53,79,60],[79,61,79,68],[79,69,79,76],[79,77,79,84],[79,85,79,88],[79,89,79,95],[79,0,79,22],[79,23,79,28],[79,29,79,31],[79,32,79,36],[79,37,79,44],[79,45,79,52],[78,53,78,60],[78,61,78,68],[78,69,78,76],[78,77,78,84],[78,85,78,88],[78,89,78,95],[78,0,78,22],[78,23,78,28],[78,29,78,31],[78,32,78,36],[78,37,78,44],[78,45,78,52],[77,53,77,60],[77,61,77,68],[77,69,77,76],[77,77,77,84],[77,85,77,88],[77,89,77,95],[77,0,77,22],[77,23,77,28],[77,29,77,31],[77,32,77,36],[77,37,77,44],[77,45,77,52],[76,53,76,60],[76,61,76,68],[76,69,76,76],[76,77,76,84],[76,85,76,88],[76,89,76,95],[76,0,76,22],[76,23,76,28],[76,29,76,31],[76,32,76,36],[76,37,76,44],[76,45,76,52],[75,53,75,60],[75,61,75,68],[75,69,75,76],[75,77,75,84],[75,85,75,88],[75,89,75,95],[75,0,75,22],[75,23,75,28],[75,29,75,31],[75,32,75,36],[75,37,75,44],[75,45,75,52],[74,53,74,60],[74,61,74,68],[74,69,74,76],[74,77,74,84],[74,85,74,88],[74,89,74,95],[74,0,74,22],[74,23,74,28],[74,29,74,31],[74,32,74,36],[74,37,74,44],[74,45,74,52],[73,53,73,60],[73,61,73,68],[73,69,73,76],[73,77,73,84],[73,85,73,88],[73,89,73,95],[73,0,73,22],[73,23,73,28],[73,29,73,31],[73,32,73,36],[73,37,73,44],[73,45,73,52],[72,53,72,60],[72,61,72,68],[72,69,72,76],[72,77,72,84],[72,85,72,88],[72,89,72,95],[72,0,72,22],[72,23,72,28],[72,29,72,31],[72,32,72,36],[72,37,72,44],[72,45,72,52],[71,53,71,60],[71,61,71,68],[71,69,71,76],[71,77,71,84],[71,85,71,88],[71,89,71,95],[71,0,71,22],[71,23,71,28],[71,29,71,31],[71,32,71,36],[71,37,71,44],[71,45,71,52],[70,53,70,60],[70,61,70,68],[70,69,70,76],[70,77,70,84],[70,85,70,88],[70,89,70,95],[70,0,70,22],[70,23,70,28],[70,29,70,31],[70,32,70,36],[70,37,70,44],[70,45,70,52],[69,53,69,60],[69,61,69,68],[69,69,69,76],[69,77,69,84],[69,85,69,88],[69,89,69,95],[69,0,69,22],[69,23,69,28],[69,29,69,31],[69,32,69,36],[69,37,69,44],[69,45,69,52],[68,53,68,60],[68,61,68,68],[68,69,68,76],[68,77,68,84],[68,85,68,88],[68,89,68,95],[68,0,68,22],[68,23,68,28],[68,29,68,31],[68,32,68,36],[68,37,68,44],[68,45,68,52],[67,53,67,60],[67,61,67,68],[67,69,67,76],[67,77,67,84],[67,85,67,88],[67,89,67,95],[67,0,67,22],[67,23,67,28],[67,29,67,31],[67,32,67,36],[67,37,67,44],[67,45,67,52],[66,53,66,60],[66,61,66,68],[66,69,66,76],[66,77,66,84],[66,85,66,88],[66,89,66,95],[66,0,66,22],[66,23,66,28],[66,29,66,31],[66,32,66,36],[66,37,66,44],[66,45,66,52],[65,53,65,60],[65,61,65,68],[65,69,65,76],[65,77,65,84],[65,85,65,88],[65,89,65,95],[65,0,65,22],[65,23,65,28],[65,29,65,31],[65,32,65,36],[65,37,65,44],[65,45,65,52],[64,53,64,60],[64,61,64,68],[64,69,64,76],[64,77,64,84],[64,85,64,88],[64,89,64,95],[64,0,64,22],[64,23,64,28],[64,29,64,31],[64,32,64,36],[64,37,64,44],[64,45,64,52],[63,53,63,60],[63,61,63,68],[63,69,63,76],[63,77,63,84],[63,85,63,88],[63,89,63,95],[63,0,63,22],[63,23,63,28],[63,29,63,31],[63,32,63,36],[63,37,63,44],[63,45,63,52],[62,53,62,60],[62,61,62,68],[62,69,62,76],[62,77,62,84],[62,85,62,88],[62,89,62,95],[62,0,62,22],[62,23,62,28],[62,29,62,31],[62,32,62,36],[62,37,62,44],[62,45,62,52],[61,53,61,60],[61,61,61,68],[61,69,61,76],[61,77,61,84],[61,85,61,88],[61,89,61,95],[61,0,61,22],[61,23,61,28],[61,29,61,31],[61,32,61,36],[61,37,61,44],[61,45,61,52],[60,53,60,60],[60,61,60,68],[60,69,60,76],[60,77,60,84],[60,85,60,88],[60,89,60,95],[60,0,60,22],[60,23,60,28],[60,29,60,31],[60,32,60,36],[60,37,60,44],[60,45,60,52],[59,53,59,60],[59,61,59,68],[59,69,59,76],[59,77,59,84],[59,85,59,88],[59,89,59,95],[59,0,59,22],[59,23,59,28],[59,29,59,31],[59,32,59,36],[59,37,59,44],[59,45,59,52],[58,53,58,60],[58,61,58,68],[58,69,58,76],[58,77,58,84],[58,85,58,88],[58,89,58,95],[58,0,58,22],[58,23,58,28],[58,29,58,31],[58,32,58,36],[58,37,58,44],[58,45,58,52],[57,53,57,60],[57,61,57,68],[57,69,57,76],[57,77,57,84],[57,85,57,88],[57,89,57,95],[57,0,57,22],[57,23,57,28],[57,29,57,31],[57,32,57,36],[57,37,57,44],[57,45,57,52],[56,53,56,60],[56,61,56,68],[56,69,56,76],[56,77,56,84],[56,85,56,88],[56,89,56,95],[56,0,56,22],[56,23,56,28],[56,29,56,31],[56,32,56,36],[56,37,56,44],[56,45,56,52],[55,53,55,60],[55,61,55,68],[55,69,55,76],[55,77,55,84],[55,85,55,88],[55,89,55,95],[55,0,55,22],[55,23,55,28],[55,29,55,31],[55,32,55,36],[55,37,55,44],[55,45,55,52],[54,53,54,60],[54,61,54,68],[54,69,54,76],[54,77,54,84],[54,85,54,88],[54,89,54,95],[54,0,54,22],[54,23,54,28],[54,29,54,31],[54,32,54,36],[54,37,54,44],[54,45,54,52],[53,53,53,60],[53,61,53,68],[53,69,53,76],[53,77,53,84],[53,85,53,88],[53,89,53,95],[53,0,53,22],[53,23,53,28],[53,29,53,31],[53,32,53,36],[53,37,53,44],[53,45,53,52],[52,53,52,60],[52,61,52,68],[52,69,52,76],[52,77,52,84],[52,85,52,88],[52,89,52,95],[52,0,52,22],[52,23,52,28],[52,29,52,31],[52,32,52,36],[52,37,52,44],[52,45,52,52],[51,53,51,60],[51,61,51,68],[51,69,51,76],[51,77,51,84],[51,85,51,88],[51,89,51,95],[51,0,51,22],[51,23,51,28],[51,29,51,31],[51,32,51,36],[51,37,51,44],[51,45,51,52],[50,53,50,60],[50,61,50,68],[50,69,50,76],[50,77,50,84],[50,85,50,88],[50,89,50,95],[50,0,50,22],[50,23,50,28],[50,29,50,31],[50,32,50,36],[50,37,50,44],[50,45,50,52],[49,53,49,60],[49,61,49,68],[49,69,49,76],[49,77,49,84],[49,85,49,88],[49,89,49,95],[49,0,49,22],[49,23,49,28],[49,29,49,31],[49,32,49,36],[49,37,49,44],[49,45,49,52],[48,53,48,60],[48,61,48,68],[48,69,48,76],[48,77,48,84],[48,85,48,88],[48,89,48,95],[48,0,48,22],[48,23,48,28],[48,29,48,31],[48,32,48,36],[48,37,48,44],[48,45,48,52],[47,53,47,60],[47,61,47,68],[47,69,47,76],[47,77,47,84],[47,85,47,88],[47,89,47,95],[47,0,47,22],[47,23,47,28],[47,29,47,31],[47,32,47,36],[47,37,47,44],[47,45,47,52],[46,53,46,60],[46,61,46,68],[46,69,46,76],[46,77,46,84],[46,85,46,88],[46,89,46,95],[46,0,46,22],[46,23,46,28],[46,29,46,31],[46,32,46,36],[46,37,46,44],[46,45,46,52],[45,53,45,60],[45,61,45,68],[45,69,45,76],[45,77,45,84],[45,85,45,88],[45,89,45,95],[45,0,45,22],[45,23,45,28],[45,29,45,31],[45,32,45,36],[45,37,45,44],[45,45,45,52],[44,53,44,60],[44,61,44,68],[44,69,44,76],[44,77,44,84],[44,85,44,88],[44,89,44,95],[44,0,44,22],[44,23,44,28],[44,29,44,31],[44,32,44,36],[44,37,44,44],[44,45,44,52],[43,53,43,60],[43,61,43,68],[43,69,43,76],[43,77,43,84],[43,85,43,88],[43,89,43,95],[43,0,43,22],[43,23,43,28],[43,29,43,31],[43,32,43,36],[43,37,43,44],[43,45,43,52],[42,53,42,60],[42,61,42,68],[42,69,42,76],[42,77,42,84],[42,85,42,88],[42,89,42,95],[42,0,42,22],[42,23,42,28],[42,29,42,31],[42,32,42,36],[42,37,42,44],[42,45,42,52],[41,53,41,60],[41,61,41,68],[41,69,41,76],[41,77,41,84],[41,85,41,88],[41,89,41,95],[41,0,41,22],[41,23,41,28],[41,29,41,31],[41,32,41,36],[41,37,41,44],[41,45,41,52],[40,53,40,60],[40,61,40,68],[40,69,40,76],[40,77,40,84],[40,85,40,88],[40,89,40,95],[40,0,40,22],[40,23,40,28],[40,29,40,31],[40,32,40,36],[40,37,40,44],[40,45,40,52],[39,53,39,60],[39,61,39,68],[39,69,39,76],[39,77,39,84],[39,85,39,88],[39,89,39,95],[39,0,39,22],[39,23,39,28],[39,29,39,31],[39,32,39,36],[39,37,39,44],[39,45,39,52],[38,53,38,60],[38,61,38,68],[38,69,38,76],[38,77,38,84],[38,85,38,88],[38,89,38,95],[38,0,38,22],[38,23,38,28],[38,29,38,31],[38,32,38,36],[38,37,38,44],[38,45,38,52],[37,53,37,60],[37,61,37,68],[37,69,37,76],[37,77,37,84],[37,85,37,88],[37,89,37,95],[37,0,37,22],[37,23,37,28],[37,29,37,31],[37,32,37,36],[37,37,37,44],[37,45,37,52],[36,53,36,60],[36,61,36,68],[36,69,36,76],[36,77,36,84],[36,85,36,88],[36,89,36,95],[36,0,36,22],[36,23,36,28],[36,29,36,31],[36,32,36,36],[36,37,36,44],[36,45,36,52],[35,53,35,60],[35,61,35,68],[35,69,35,76],[35,77,35,84],[35,85,35,88],[35,89,35,95],[35,0,35,22],[35,23,35,28],[35,29,35,31],[35,32,35,36],[35,37,35,44],[35,45,35,52],[34,53,34,60],[34,61,34,68],[34,69,34,76],[34,77,34,84],[34,85,34,88],[34,89,34,95],[34,0,34,22],[34,23,34,28],[34,29,34,31],[34,32,34,36],[34,37,34,44],[34,45,34,52],[33,53,33,60],[33,61,33,68],[33,69,33,76],[33,77,33,84],[33,85,33,88],[33,89,33,95],[33,0,33,22],[33,23,33,28],[33,29,33,31],[33,32,33,36],[33,37,33,44],[33,45,33,52],[32,53,32,60],[32,61,32,68],[32,69,32,76],[32,77,32,84],[32,85,32,88],[32,89,32,95],[32,0,32,22],[32,23,32,28],[32,29,32,31],[32,32,32,36],[32,37,32,44],[32,45,32,52],[31,53,31,60],[31,61,31,68],[31,69,31,76],[31,77,31,84],[31,85,31,88],[31,89,31,95],[31,0,31,22],[31,23,31,28],[31,29,31,31],[31,32,31,36],[31,37,31,44],[31,45,31,52],[30,53,30,60],[30,61,30,68],[30,69,30,76],[30,77,30,84],[30,85,30,88],[30,89,30,95],[30,0,30,22],[30,23,30,28],[30,29,30,31],[30,32,30,36],[30,37,30,44],[30,45,30,52],[29,53,29,60],[29,61,29,68],[29,69,29,76],[29,77,29,84],[29,85,29,88],[29,89,29,95],[29,0,29,22],[29,23,29,28],[29,29,29,31],[29,32,29,36],[29,37,29,44],[29,45,29,52],[28,53,28,60],[28,61,28,68],[28,69,28,76],[28,77,28,84],[28,85,28,88],[28,89,28,95],[28,0,28,22],[28,23,28,28],[28,29,28,31],[28,32,28,36],[28,37,28,44],[28,45,28,52],[27,53,27,60],[27,61,27,68],[27,69,27,76],[27,77,27,84],[27,85,27,88],[27,89,27,95],[27,0,27,22],[27,23,27,28],[27,29,27,31],[27,32,27,36],[27,37,27,44],[27,45,27,52],[26,53,26,60],[26,61,26,68],[26,69,26,76],[26,77,26,84],[26,85,26,88],[26,89,26,95],[26,0,26,22],[26,23,26,28],[26,29,26,31],[26,32,26,36],[26,37,26,44],[26,45,26,52],[25,53,25,60],[25,61,25,68],[25,69,25,76],[25,77,25,84],[25,85,25,88],[25,89,25,95],[25,0,25,22],[25,23,25,28],[25,29,25,31],[25,32,25,36],[25,37,25,44],[25,45,25,52],[24,53,24,60],[24,61,24,68],[24,69,24,76],[24,77,24,84],[24,85,24,88],[24,89,24,95],[24,0,24,22],[24,23,24,28],[24,29,24,31],[24,32,24,36],[24,37,24,44],[24,45,24,52],[23,53,23,60],[23,61,23,68],[23,69,23,76],[23,77,23,84],[23,85,23,88],[23,89,23,95],[23,0,23,22],[23,23,23,28],[23,29,23,31],[23,32,23,36],[23,37,23,44],[23,45,23,52],[22,53,22,60],[22,61,22,68],[22,69,22,76],[22,77,22,84],[22,85,22,88],[22,89,22,95],[22,0,22,22],[22,23,22,28],[22,29,22,31],[22,32,22,36],[22,37,22,44],[22,45,22,52],[21,53,21,60],[21,61,21,68],[21,69,21,76],[21,77,21,84],[21,85,21,88],[21,89,21,95],[21,0,21,22],[21,23,21,28],[21,29,21,31],[21,32,21,36],[21,37,21,44],[21,45,21,52],[20,53,20,60],[20,61,20,68],[20,69,20,76],[20,77,20,84],[20,85,20,88],[20,89,20,95],[20,0,20,22],[20,23,20,28],[20,29,20,31],[20,32,20,36],[20,37,20,44],[20,45,20,52],[19,53,19,60],[19,61,19,68],[19,69,19,76],[19,77,19,84],[19,85,19,88],[19,89,19,95],[19,0,19,22],[19,23,19,28],[19,29,19,31],[19,32,19,36],[19,37,19,44],[19,45,19,52],[13,9,13,13],[13,14,13,27],[13,28,13,31],[13,32,13,38],[15,69,18,76],[15,77,18,84],[15,85,18,88],[15,89,18,95],[17,0,18,22],[17,23,18,28],[17,29,18,31],[17,32,18,36],[17,37,18,44],[17,45,18,52],[0,53,0,95],[1,53,1,95],[2,53,2,95],[3,29,4,47],[3,48,4,59],[4,87,4,95],[9,56,10,87],[9,88,12,95],[11,14,12,27],[11,28,12,31],[11,39,12,46],[11,47,12,55],[11,56,12,73],[11,74,12,87],[9,14,10,31],[9,32,12,38],[9,39,10,55],[15,96,18,96],[5,71,5,85],[5,87,5,95],[6,6,6,75],[6,77,6,85],[6,87,6,95],[7,0,7,6],[7,7,7,75],[7,87,7,95],[9,0,12,4],[9,5,12,8],[9,9,12,13],[13,39,13,46],[13,47,13,55],[13,56,13,73],[13,77,13,87],[13,88,13,95],[15,0,16,28],[15,29,16,36],[15,37,16,52],[15,53,18,60],[15,61,18,68],[13,0,13,4],[13,5,13,8]]}
[null,null,null,null,null,null,null,null,null,null,null,null,null,null,null,null,null,null,null,null,null,null,null,null,null,null,null,null,null,null,null,null,null,null,null,null,null,null,null,null,null,null,null,null,null,null,null,null,null,null,null,null,null,"                   Типовая межотраслевая форма № М-4"]
[null,null,null,null,null,null,null,null,null,null,null,null,null,null,null,null,null,null,null,null,null,null,null,null,null,null,null,null,null,null,null,null,null,null,null,null,null,null,null,null,null,null,null,null,null,null,null,null,null,null,null,null,null,"Утверждена распоряжением ОАО \"РЖД\""]
[null,null,null,null,null,null,null,null,null,null,null,null,null,null,null,null,null,null,null,null,null,null,null,null,null,null,null,null,null,null,null,null,null,null,null,null,null,null,null,null,null,null,null,null,null,null,null,null,null,null,null,null,null,"                   от 15.12.2008 г. № 2688р"]
[null,null,null,null,null,null,null,null,null,null,null,null,null,null,null,null,null,null,null,null,null,null,null,null,null,null,null,null,null,"ПРИХОДНЫЙ ОРДЕР №"]
[null,null,null,null,null,null,null,null,null,null,null,null,null,null,null,null,null,null,null,null,null,null,null,null,null,null,null,null,null,null,null,null,null,null,null,null,null,null,null,null,null,null,null,null,null,null,null,null,null,null,null,null,null,null,null,null,null,null,null,null,null,null,null,null,null,null,null,null,null,null,null,null,null,null,null,null,null,null,null,null,null,null,null,null,null,null,null,"Коды"]
[null,null,null,null,null,null,null,null,null,null,null,null,null,null,null,null,null,null,null,null,null,null,null,null,null,null,null,null,null,null,null,null,null,null,null,null,null,null,null,null,null,null,null,null,null,null,null,null,null,null,null,null,null,null,null,null,null,null,null,null,null,null,null,null,null,null,null,null,null,null,null,"Форма по ОКУД",null,null,null,null,null,null,null,null,null,null,null,null,null,null,null,"0315003"]
["Организация",null,null,null,null,null,null,null,null,null,null,null,null,null,null,null,null,null,null,null,null,null,null,null,null,null,null,null,null,null,null,null,null,null,null,null,null,null,null,null,null,null,null,null,null,null,null,null,null,null,null,null,null,null,null,null,null,null,null,null,null,null,null,null,null,null,null,null,null,null,null,null,null,null,null,null,null,"по ОКПО",null,null,null,null,null,null,null,null,null,"00083262"]
["Структурное                    подразделение",null,null,null,null,null,null,null,null,null,null,null,null,null,null,null,null,null,null,null,null,null,null,null,null,null,null,null,null,null,null,null,null,null,null,null,null,null,null,null,null,null,null,null,null,null,null,null,null,null,null,null,null,null,null,null,null,null,null,null,null,null,null,null,null,null,null,null,null,null,null,null,null,null,null,null,null,null,null,null,null,null,null,null,null,null,null,"6004"]
[]
["Дата соста-вления",null,null,null,null,"Код вида операции",null,null,null,"Склад",null,null,null,null,"Поставщик/ грузоотправитель",null,null,null,null,null,null,null,null,null,null,null,null,null,null,null,null,null,"Страховая компания",null,null,null,null,null,null,"Корреспонди-рующий счет",null,null,null,null,null,null,null,null,null,null,null,null,null,null,null,null,"Номер документа"]
[]
[null,null,null,null,null,null,null,null,null,null,null,null,null,null,"наименование",null,null,null,null,null,null,null,null,null,null,null,null,null,"код",null,null,null,null,null,null,null,null,null,null,"счет, субсчет",null,null,null,null,null,null,null,"код анали-тического учета\nческого учета",null,null,null,null,null,null,null,null,"сопроводи-\nтельного",null,null,null,null,null,null,null,null,null,null,null,null,null,null,null,null,null,"платежного"]
[]
[null,null,null,null,null,null,null,null,null,"F004/002",null,null,null,null,null,null,null,null,null,null,null,null,null,null,null,null,null,null,null,null,null,null,null,null,null,null,null,null,null,null,null,null,null,null,null,null,null,null,null,null,null,null,null,null,null,null,null,null,null,null,null,null,null,null,null,null,null,null,null,null,null,null,null,null,null,null,null,""]
[]
["Материальные ценности",null,null,null,null,null,null,null,null,null,null,null,null,null,null,null,null,null,null,null,null,null,null,null,null,null,null,null,null,"Единица измерения",null,null,null,null,null,null,null,"Количество",null,null,null,null,null,null,null,null,null,null,null,null,null,null,null,"Цена,\nруб. коп.",null,null,null,null,null,null,null,"Сумма без учета НДС,руб. коп.",null,null,null,null,null,null,null,"Сумма НДС, руб. коп.",null,null,null,null,null,null,null,"Всего с учетом НДС, руб. коп.",null,null,null,null,null,null,null,"Номер пас-пор-\nта",null,null,null,"Порядковый номер по складской картотеке",null,null,null,null,null,null,"Дата"]
[]
["наименование, сорт, размер, марка",null,null,null,null,null,null,null,null,null,null,null,null,null,null,null,null,null,null,null,null,null,null,"номенклатур-\nный номер",null,null,null,null,null,"код",null,null,"наимено-\nвание",null,null,null,null,"по доку-менту",null,null,null,null,null,null,null,"принято"]
[]
[1,null,null,null,null,null,null,null,null,null,null,null,null,null,null,null,null,null,null,null,null,null,null,2,null,null,null,null,null,3,null,null,4,null,null,null,null,5,null,null,null,null,null,null,null,6,null,null,null,null,null,null,null,7,null,null,null,null,null,null,null,8,null,null,null,null,null,null,null,9,null,null,null,null,null,null,null,10,null,null,null,null,null,null,null,11,null,null,null,12,null,null,null,null,null,null,13]
["ЛЕНТА САМОКЛЕЮЩАЯСЯ",null,null,null,null,null,null,null,null,null,null,null,null,null,null,null,null,null,null,null,null,null,null,2379480009,null,null,null,null,null,796,null,null,"шт",null,null,null,null,1,null,null,null,null,null,null,null,1,null,null,null,null,null,null,null,200,null,null,null,null,null,null,null,200,null,null,null,null,null,null,null,null,null,null,null,null,null,null,null,200,null,null,null,null,null,null,null,null,null,null,null,null,null,null,null,null,null,null,1]
["ПАСТА КОЛЕРНАЯ",null,null,null,null,null,null,null,null,null,null,null,null,null,null,null,null,null,null,null,null,null,null,2332190029,null,null,null,null,null,796,null,null,"шт",null,null,null,null,3,null,null,null,null,null,null,null,3,null,null,null,null,null,null,null,40,null,null,null,null,null,null,null,120,null,null,null,null,null,null,null,null,null,null,null,null,null,null,null,120,null,null,null,null,null,null,null,null,null,null,null,null,null,null,null,null,null,null,1]
["ВИНТ САМОНАРЕЗАЮЩИЙ",null,null,null,null,null,null,null,null,null,null,null,null,null,null,null,null,null,null,null,null,null,null,1650001811,null,null,null,null,null,796,null,null,"шт",null,null,null,null,500,null,null,null,null,null,null,null,500,null,null,null,null,null,null,null,0.45,null,null,null,null,null,null,null,225,null,null,null,null,null,null,null,null,null,null,null,null,null,null,null,225,null,null,null,null,null,null,null,null,null,null,null,null,null,null,null,null,null,null,1]
["ДЮБЕЛЬ-ГВОЗДЬ",null,null,null,null,null,null,null,null,null,null,null,null,null,null,null,null,null,null,null,null,null,null,1271100119,null,null,null,null,null,796,null,null,"шт",null,null,null,null,200,null,null,null,null,null,null,null,200,null,null,null,null,null,null,null,1.5,null,null,null,null,null,null,null,300,null,null,null,null,null,null,null,null,null,null,null,null,null,null,null,300,null,null,null,null,null,null,null,null,null,null,null,null,null,null,null,null,null,null,3]
["ПОДВЕС ПРЯМОЙ ДЛЯ ГИПСОКАРТОНА",null,null,null,null,null,null,null,null,null,null,null,null,null,null,null,null,null,null,null,null,null,null,9693100417,null,null,null,null,null,796,null,null,"шт",null,null,null,null,100,null,null,null,null,null,null,null,100,null,null,null,null,null,null,null,4,null,null,null,null,null,null,null,400,null,null,null,null,null,null,null,null,null,null,null,null,null,null,null,400,null,null,null,null,null,null,null,null,null,null,null,null,null,null,null,null,null,null,6]
["ЗАТИРКА ДЛЯ ШВОВ",null,null,null,null,null,null,null,null,null,null,null,null,null,null,null,null,null,null,null,null,null,null,2313940019,null,null,null,null,null,796,null,null,"шт",null,null,null,null,2,null,null,null,null,null,null,null,2,null,null,null,null,null,null,null,165,null,null,null,null,null,null,null,330,null,null,null,null,null,null,null,null,null,null,null,null,null,null,null,330,null,null,null,null,null,null,null,null,null,null,null,null,null,null,null,null,null,null,6]
["ГИПСОКАРТОН ЛИСТОВОЙ",null,null,null,null,null,null,null,null,null,null,null,null,null,null,null,null,null,null,null,null,null,null,5767730005,null,null,null,null,null,796,null,null,"шт",null,null,null,null,10,null,null,null,null,null,null,null,10,null,null,null,null,null,null,null,295,null,null,null,null,null,null,null,2950,null,null,null,null,null,null,null,null,null,null,null,null,null,null,null,2950,null,null,null,null,null,null,null,null,null,null,null,null,null,null,null,null,null,null,7]
["ТРОЙНИК ПОЛИПРОПИЛЕНОВЫЙ ДЛЯ ТРУБ",null,null,null,null,null,null,null,null,null,null,null,null,null,null,null,null,null,null,null,null,null,null,2248120352,null,null,null,null,null,796,null,null,"шт",null,null,null,null,2,null,null,null,null,null,null,null,2,null,null,null,null,null,null,null,6.5,null,null,null,null,null,null,null,13,null,null,null,null,null,null,null,null,null,null,null,null,null,null,null,13,null,null,null,null,null,null,null,null,null,null,null,null,null,null,null,null,null,null,8]
["УГОЛЬНИК ПОЛИПРОПИЛЕНОВЫЙ",null,null,null,null,null,null,null,null,null,null,null,null,null,null,null,null,null,null,null,null,null,null,2248120234,null,null,null,null,null,796,null,null,"шт",null,null,null,null,10,null,null,null,null,null,null,null,10,null,null,null,null,null,null,null,4.5,null,null,null,null,null,null,null,45,null,null,null,null,null,null,null,null,null,null,null,null,null,null,null,45,null,null,null,null,null,null,null,null,null,null,null,null,null,null,null,null,null,null,8]
["УГОЛЬНИК ПОЛИПРОПИЛЕНОВЫЙ",null,null,null,null,null,null,null,null,null,null,null,null,null,null,null,null,null,null,null,null,null,null,2248120272,null,null,null,null,null,796,null,null,"шт",null,null,null,null,5,null,null,null,null,null,null,null,5,null,null,null,null,null,null,null,4,null,null,null,null,null,null,null,20,null,null,null,null,null,null,null,null,null,null,null,null,null,null,null,20,null,null,null,null,null,null,null,null,null,null,null,null,null,null,null,null,null,null,8]
["КРЕПЛЕНИЕ ПОЛИПРОПИЛЕНОВОЕ",null,null,null,null,null,null,null,null,null,null,null,null,null,null,null,null,null,null,null,null,null,null,2248120265,null,null,null,null,null,796,null,null,"шт",null,null,null,null,10,null,null,null,null,null,null,null,10,null,null,null,null,null,null,null,2.5,null,null,null,null,null,null,null,25,null,null,null,null,null,null,null,null,null,null,null,null,null,null,null,25,null,null,null,null,null,null,null,null,null,null,null,null,null,null,null,null,null,null,8]
["ГОФРА ДЛЯ УНИТАЗА С ВЫХОДОМ",null,null,null,null,null,null,null,null,null,null,null,null,null,null,null,null,null,null,null,null,null,null,2248130079,null,null,null,null,null,796,null,null,"шт",null,null,null,null,1,null,null,null,null,null,null,null,1,null,null,null,null,null,null,null,133,null,null,null,null,null,null,null,133,null,null,null,null,null,null,null,null,null,null,null,null,null,null,null,133,null,null,null,null,null,null,null,null,null,null,null,null,null,null,null,null,null,null,8]
["СИФОН БУТЫЛОЧНЫЙ ДЛЯ РАКОВИНЫ",null,null,null,null,null,null,null,null,null,null,null,null,null,null,null,null,null,null,null,null,null,null,4951710001,null,null,null,null,null,796,null,null,"шт",null,null,null,null,1,null,null,null,null,null,null,null,1,null,null,null,null,null,null,null,200,null,null,null,null,null,null,null,200,null,null,null,null,null,null,null,null,null,null,null,null,null,null,null,200,null,null,null,null,null,null,null,null,null,null,null,null,null,null,null,null,null,null,8]
["ТРУБА НАПОРНАЯ ПОЛИПРОПИЛЕНОВАЯ",null,null,null,null,null,null,null,null,null,null,null,null,null,null,null,null,null,null,null,null,null,null,2248120070,null,null,null,null,null,6,null,null,"м",null,null,null,null,4,null,null,null,null,null,null,null,4,null,null,null,null,null,null,null,37,null,null,null,null,null,null,null,148,null,null,null,null,null,null,null,null,null,null,null,null,null,null,null,148,null,null,null,null,null,null,null,null,null,null,null,null,null,null,null,null,null,null,8]
["ОТВОД КАНАЛИЗАЦИОННЫЙ ИЗ ПОЛИПРОПИЛЕНА",null,null,null,null,null,null,null,null,null,null,null,null,null,null,null,null,null,null,null,null,null,null,2248120089,null,null,null,null,null,796,null,null,"шт",null,null,null,null,1,null,null,null,null,null,null,null,1,null,null,null,null,null,null,null,15,null,null,null,null,null,null,null,15,null,null,null,null,null,null,null,null,null,null,null,null,null,null,null,15,null,null,null,null,null,null,null,null,null,null,null,null,null,null,null,null,null,null,8]
["ТРУБА КАНАЛИЗАЦИОННАЯ ПП 110*1500 ",null,null,null,null,null,null,null,null,null,null,null,null,null,null,null,null,null,null,null,null,null,null,2248110017,null,null,null,null,null,796,null,null,"шт",null,null,null,null,1,null,null,null,null,null,null,null,1,null,null,null,null,null,null,null,79,null,null,null,null,null,null,null,79,null,null,null,null,null,null,null,null,null,null,null,null,null,null,null,79,null,null,null,null,null,null,null,null,null,null,null,null,null,null,null,null,null,null,8]
["СМЕСИТЕЛЬ ДЛЯ РАКОВИНЫ",null,null,null,null,null,null,null,null,null,null,null,null,null,null,null,null,null,null,null,null,null,null,4951140011,null,null,null,null,null,796,null,null,"шт",null,null,null,null,1,null,null,null,null,null,null,null,1,null,null,null,null,null,null,null,500,null,null,null,null,null,null,null,500,null,null,null,null,null,null,null,null,null,null,null,null,null,null,null,500,null,null,null,null,null,null,null,null,null,null,null,null,null,null,null,null,null,null,8]
["ЛЕНТА САМОКЛЕЮЩАЯСЯ",null,null,null,null,null,null,null,null,null,null,null,null,null,null,null,null,null,null,null,null,null,null,2379480157,null,null,null,null,null,796,null,null,"шт",null,null,null,null,1,null,null,null,null,null,null,null,1,null,null,null,null,null,null,null,90,null,null,null,null,null,null,null,90,null,null,null,null,null,null,null,null,null,null,null,null,null,null,null,90,null,null,null,null,null,null,null,null,null,null,null,null,null,null,null,null,null,null,13]
["ЗАМОК ВИСЯЧИЙ",null,null,null,null,null,null,null,null,null,null,null,null,null,null,null,null,null,null,null,null,null,null,3187895231,null,null,null,null,null,796,null,null,"шт",null,null,null,null,1,null,null,null,null,null,null,null,1,null,null,null,null,null,null,null,204,null,null,null,null,null,null,null,204,null,null,null,null,null,null,null,null,null,null,null,null,null,null,null,204,null,null,null,null,null,null,null,null,null,null,null,null,null,null,null,null,null,null,13]
["ЗАМОК ВИСЯЧИЙ",null,null,null,null,null,null,null,null,null,null,null,null,null,null,null,null,null,null,null,null,null,null,4981110111,null,null,null,null,null,796,null,null,"шт",null,null,null,null,1,null,null,null,null,null,null,null,1,null,null,null,null,null,null,null,135,null,null,null,null,null,null,null,135,null,null,null,null,null,null,null,null,null,null,null,null,null,null,null,135,null,null,null,null,null,null,null,null,null,null,null,null,null,null,null,null,null,null,13]
["ПАСТА КОЛЕРНАЯ",null,null,null,null,null,null,null,null,null,null,null,null,null,null,null,null,null,null,null,null,null,null,2332190014,null,null,null,null,null,796,null,null,"шт",null,null,null,null,6,null,null,null,null,null,null,null,6,null,null,null,null,null,null,null,50,null,null,null,null,null,null,null,300,null,null,null,null,null,null,null,null,null,null,null,null,null,null,null,300,null,null,null,null,null,null,null,null,null,null,null,null,null,null,null,null,null,null,13]
["ШЛАНГ РЕЗИНОВЫЙ",null,null,null,null,null,null,null,null,null,null,null,null,null,null,null,null,null,null,null,null,null,null,2559290005,null,null,null,null,null,6,null,null,"м",null,null,null,null,15,null,null,null,null,null,null,null,15,null,null,null,null,null,null,null,120,null,null,null,null,null,null,null,1800,null,null,null,null,null,null,null,null,null,null,null,null,null,null,null,1800,null,null,null,null,null,null,null,null,null,null,null,null,null,null,null,null,null,null,14]
["ПОРОГ-СТЫК АЛЮМИНИЕВЫЙ ДЛЯ НАПОЛЬНЫХ ПОКРЫТИЙ",null,null,null,null,null,null,null,null,null,null,null,null,null,null,null,null,null,null,null,null,null,null,5275220014,null,null,null,null,null,796,null,null,"шт",null,null,null,null,3,null,null,null,null,null,null,null,3,null,null,null,null,null,null,null,200,null,null,null,null,null,null,null,600,null,null,null,null,null,null,null,null,null,null,null,null,null,null,null,600,null,null,null,null,null,null,null,null,null,null,null,null,null,null,null,null,null,null,15]
["ЭМАЛЬ ДЛЯ РАДИАТОРОВ ГЛЯНЦЕВАЯ 400мл",null,null,null,null,null,null,null,null,null,null,null,null,null,null,null,null,null,null,null,null,null,null,2312221732,null,null,null,null,null,796,null,null,"шт",null,null,null,null,2,null,null,null,null,null,null,null,2,null,null,null,null,null,null,null,215,null,null,null,null,null,null,null,430,null,null,null,null,null,null,null,null,null,null,null,null,null,null,null,430,null,null,null,null,null,null,null,null,null,null,null,null,null,null,null,null,null,null,17]
["ОТВОД КАНАЛИЗАЦИОННЫЙ ИЗ ПОЛИПРОПИЛЕНА",null,null,null,null,null,null,null,null,null,null,null,null,null,null,null,null,null,null,null,null,null,null,2248120090,null,null,null,null,null,796,null,null,"шт",null,null,null,null,2,null,null,null,null,null,null,null,2,null,null,null,null,null,null,null,85,null,null,null,null,null,null,null,170,null,null,null,null,null,null,null,null,null,null,null,null,null,null,null,170,null,null,null,null,null,null,null,null,null,null,null,null,null,null,null,null,null,null,17]
["ТРУБА ДЛЯ НАРУЖНОЙ КАНАЛИЗАЦИИ",null,null,null,null,null,null,null,null,null,null,null,null,null,null,null,null,null,null,null,null,null,null,2248200007,null,null,null,null,null,796,null,null,"шт",null,null,null,null,5,null,null,null,null,null,null,null,5,null,null,null,null,null,null,null,505,null,null,null,null,null,null,null,2525,null,null,null,null,null,null,null,null,null,null,null,null,null,null,null,2525,null,null,null,null,null,null,null,null,null,null,null,null,null,null,null,null,null,null,17]
["ГРУНТ-ЭМАЛЬ ПО РЖАВЧИНЕ",null,null,null,null,null,null,null,null,null,null,null,null,null,null,null,null,null,null,null,null,null,null,2313920103,null,null,null,null,null,796,null,null,"шт",null,null,null,null,1,null,null,null,null,null,null,null,1,null,null,null,null,null,null,null,278,null,null,null,null,null,null,null,278,null,null,null,null,null,null,null,null,null,null,null,null,null,null,null,278,null,null,null,null,null,null,null,null,null,null,null,null,null,null,null,null,null,null,20]
["РАСТВОРИТЕЛЬ",null,null,null,null,null,null,null,null,null,null,null,null,null,null,null,null,null,null,null,null,null,null,2319100001,null,null,null,null,null,796,null,null,"шт",null,null,null,null,2,null,null,null,null,null,null,null,2,null,null,null,null,null,null,null,50,null,null,null,null,null,null,null,100,null,null,null,null,null,null,null,null,null,null,null,null,null,null,null,100,null,null,null,null,null,null,null,null,null,null,null,null,null,null,null,null,null,null,20]
["СГОН ПРЯМОЙ",null,null,null,null,null,null,null,null,null,null,null,null,null,null,null,null,null,null,null,null,null,null,4923200055,null,null,null,null,null,796,null,null,"шт",null,null,null,null,1,null,null,null,null,null,null,null,1,null,null,null,null,null,null,null,40,null,null,null,null,null,null,null,40,null,null,null,null,null,null,null,null,null,null,null,null,null,null,null,40,null,null,null,null,null,null,null,null,null,null,null,null,null,null,null,null,null,null,20]
["СГОН СТАЛЬНОЙ С ЦИЛИНДРИЧЕСКОЙ РЕЗЬБОЙ",null,null,null,null,null,null,null,null,null,null,null,null,null,null,null,null,null,null,null,null,null,null,1462000800,null,null,null,null,null,796,null,null,"шт",null,null,null,null,2,null,null,null,null,null,null,null,2,null,null,null,null,null,null,null,15,null,null,null,null,null,null,null,30,null,null,null,null,null,null,null,null,null,null,null,null,null,null,null,30,null,null,null,null,null,null,null,null,null,null,null,null,null,null,null,null,null,null,20]
["КОНТРГАЙКА",null,null,null,null,null,null,null,null,null,null,null,null,null,null,null,null,null,null,null,null,null,null,1680002347,null,null,null,null,null,796,null,null,"шт",null,null,null,null,1,null,null,null,null,null,null,null,1,null,null,null,null,null,null,null,15,null,null,null,null,null,null,null,15,null,null,null,null,null,null,null,null,null,null,null,null,null,null,null,15,null,null,null,null,null,null,null,null,null,null,null,null,null,null,null,null,null,null,20]
["МУФТА ПРЯМАЯ",null,null,null,null,null,null,null,null,null,null,null,null,null,null,null,null,null,null,null,null,null,null,2248120208,null,null,null,null,null,796,null,null,"шт",null,null,null,null,1,null,null,null,null,null,null,null,1,null,null,null,null,null,null,null,45,null,null,null,null,null,null,null,45,null,null,null,null,null,null,null,null,null,null,null,null,null,null,null,45,null,null,null,null,null,null,null,null,null,null,null,null,null,null,null,null,null,null,20]
["ОТВОД СТАЛЬНОЙ КРУТОИЗОГНУТЫЙ",null,null,null,null,null,null,null,null,null,null,null,null,null,null,null,null,null,null,null,null,null,null,1468100069,null,null,null,null,null,796,null,null,"шт",null,null,null,null,2,null,null,null,null,null,null,null,2,null,null,null,null,null,null,null,29,null,null,null,null,null,null,null,58,null,null,null,null,null,null,null,null,null,null,null,null,null,null,null,58,null,null,null,null,null,null,null,null,null,null,null,null,null,null,null,null,null,null,20]
["ОТВОД СТАЛЬНОЙ КРУТОИЗОГНУТЫЙ",null,null,null,null,null,null,null,null,null,null,null,null,null,null,null,null,null,null,null,null,null,null,1468106002,null,null,null,null,null,796,null,null,"шт",null,null,null,null,2,null,null,null,null,null,null,null,2,null,null,null,null,null,null,null,20,null,null,null,null,null,null,null,40,null,null,null,null,null,null,null,null,null,null,null,null,null,null,null,40,null,null,null,null,null,null,null,null,null,null,null,null,null,null,null,null,null,null,20]
["ЛЕН САНТЕХНИЧЕСКИЙ",null,null,null,null,null,null,null,null,null,null,null,null,null,null,null,null,null,null,null,null,null,null,8112110013,null,null,null,null,null,796,null,null,"шт",null,null,null,null,5,null,null,null,null,null,null,null,5,null,null,null,null,null,null,null,20,null,null,null,null,null,null,null,100,null,null,null,null,null,null,null,null,null,null,null,null,null,null,null,100,null,null,null,null,null,null,null,null,null,null,null,null,null,null,null,null,null,null,20]
["КЮВЕТА ПЛАСТМАССОВАЯ ДЛЯ КРАСКИ",null,null,null,null,null,null,null,null,null,null,null,null,null,null,null,null,null,null,null,null,null,null,2293190191,null,null,null,null,null,796,null,null,"шт",null,null,null,null,1,null,null,null,null,null,null,null,1,null,null,null,null,null,null,null,60,null,null,null,null,null,null,null,60,null,null,null,null,null,null,null,null,null,null,null,null,null,null,null,60,null,null,null,null,null,null,null,null,null,null,null,null,null,null,null,null,null,null,20]
["КИСТЬ МАЛЯРНАЯ ПЛОСКАЯ",null,null,null,null,null,null,null,null,null,null,null,null,null,null,null,null,null,null,null,null,null,null,9677510048,null,null,null,null,null,796,null,null,"шт",null,null,null,null,2,null,null,null,null,null,null,null,2,null,null,null,null,null,null,null,60,null,null,null,null,null,null,null,120,null,null,null,null,null,null,null,null,null,null,null,null,null,null,null,120,null,null,null,null,null,null,null,null,null,null,null,null,null,null,null,null,null,null,20]
["КИСТЬ МАЛЯРНАЯ ПЛОСКАЯ",null,null,null,null,null,null,null,null,null,null,null,null,null,null,null,null,null,null,null,null,null,null,9677510049,null,null,null,null,null,796,null,null,"шт",null,null,null,null,2,null,null,null,null,null,null,null,2,null,null,null,null,null,null,null,70,null,null,null,null,null,null,null,140,null,null,null,null,null,null,null,null,null,null,null,null,null,null,null,140,null,null,null,null,null,null,null,null,null,null,null,null,null,null,null,null,null,null,20]
["ВАЛИК МАЛЯРНЫЙ ПОЛИАКРИЛ",null,null,null,null,null,null,null,null,null,null,null,null,null,null,null,null,null,null,null,null,null,null,9677510221,null,null,null,null,null,796,null,null,"шт",null,null,null,null,4,null,null,null,null,null,null,null,4,null,null,null,null,null,null,null,145,null,null,null,null,null,null,null,580,null,null,null,null,null,null,null,null,null,null,null,null,null,null,null,580,null,null,null,null,null,null,null,null,null,null,null,null,null,null,null,null,null,null,20]
["ПОДВЕС ПРЯМОЙ ДЛЯ ГИПСОКАРТОНА",null,null,null,null,null,null,null,null,null,null,null,null,null,null,null,null,null,null,null,null,null,null,9693100417,null,null,null,null,null,796,null,null,"шт",null,null,null,null,30,null,null,null,null,null,null,null,30,null,null,null,null,null,null,null,10,null,null,null,null,null,null,null,300,null,null,null,null,null,null,null,null,null,null,null,null,null,null,null,300,null,null,null,null,null,null,null,null,null,null,null,null,null,null,null,null,null,null,21]
["ВИНТ САМОНАРЕЗАЮЩИЙ",null,null,null,null,null,null,null,null,null,null,null,null,null,null,null,null,null,null,null,null,null,null,1650001173,null,null,null,null,null,166,null,null,"кг",null,null,null,null,0.56999999999999995,null,null,null,null,null,null,null,0.56999999999999995,null,null,null,null,null,null,null,350,null,null,null,null,null,null,null,199.49999999999997,null,null,null,null,null,null,null,null,null,null,null,null,null,null,null,199.49999999999997,null,null,null,null,null,null,null,null,null,null,null,null,null,null,null,null,null,null,23]
["СКОБЫ ДЛЯ СТЕПЛЕРА",null,null,null,null,null,null,null,null,null,null,null,null,null,null,null,null,null,null,null,null,null,null,9692810024,null,null,null,null,null,796,null,null,"шт",null,null,null,null,1,null,null,null,null,null,null,null,1,null,null,null,null,null,null,null,145,null,null,null,null,null,null,null,145,null,null,null,null,null,null,null,null,null,null,null,null,null,null,null,145,null,null,null,null,null,null,null,null,null,null,null,null,null,null,null,null,null,null,23]
["ПАКЕТ ПОЛИЭТИЛЕНОВЫЙ ФАСОВОЧНЫЙ",null,null,null,null,null,null,null,null,null,null,null,null,null,null,null,null,null,null,null,null,null,null,2293110081,null,null,null,null,null,796,null,null,"шт",null,null,null,null,1,null,null,null,null,null,null,null,1,null,null,null,null,null,null,null,1.4,null,null,null,null,null,null,null,1.4,null,null,null,null,null,null,null,null,null,null,null,null,null,null,null,1.4,null,null,null,null,null,null,null,null,null,null,null,null,null,null,null,null,null,null,23]
["ВИНТ САМОНАРЕЗАЮЩИЙ ДЛЯ ГИПСОКАРТОНА",null,null,null,null,null,null,null,null,null,null,null,null,null,null,null,null,null,null,null,null,null,null,1650000171,null,null,null,null,null,166,null,null,"кг",null,null,null,null,0.25,null,null,null,null,null,null,null,0.25,null,null,null,null,null,null,null,470,null,null,null,null,null,null,null,117.5,null,null,null,null,null,null,null,null,null,null,null,null,null,null,null,117.5,null,null,null,null,null,null,null,null,null,null,null,null,null,null,null,null,null,null,23]
["РЕЛЕ ВТЯГИВАЮЩЕЕ СТАРТЕРА",null,null,null,null,null,null,null,null,null,null,null,null,null,null,null,null,null,null,null,null,null,null,4573750014,null,null,null,null,null,796,null,null,"шт",null,null,null,null,1,null,null,null,null,null,null,null,1,null,null,null,null,null,null,null,1845,null,null,null,null,null,null,null,1845,null,null,null,null,null,null,null,null,null,null,null,null,null,null,null,1845,null,null,null,null,null,null,null,null,null,null,null,null,null,null,null,null,null,null,23]
["ЛАК ПАРКЕТНЫЙ",null,null,null,null,null,null,null,null,null,null,null,null,null,null,null,null,null,null,null,null,null,null,2311220052,null,null,null,null,null,796,null,null,"шт",null,null,null,null,1,null,null,null,null,null,null,null,1,null,null,null,null,null,null,null,185,null,null,null,null,null,null,null,185,null,null,null,null,null,null,null,null,null,null,null,null,null,null,null,185,null,null,null,null,null,null,null,null,null,null,null,null,null,null,null,null,null,null,24]
["КЮВЕТА ПЛАСТМАССОВАЯ ДЛЯ КРАСКИ",null,null,null,null,null,null,null,null,null,null,null,null,null,null,null,null,null,null,null,null,null,null,2293190191,null,null,null,null,null,796,null,null,"шт",null,null,null,null,1,null,null,null,null,null,null,null,1,null,null,null,null,null,null,null,60,null,null,null,null,null,null,null,60,null,null,null,null,null,null,null,null,null,null,null,null,null,null,null,60,null,null,null,null,null,null,null,null,null,null,null,null,null,null,null,null,null,null,24]
["КИСТЬ МАЛЯРНАЯ ПЛОСКАЯ",null,null,null,null,null,null,null,null,null,null,null,null,null,null,null,null,null,null,null,null,null,null,9677510050,null,null,null,null,null,796,null,null,"шт",null,null,null,null,1,null,null,null,null,null,null,null,1,null,null,null,null,null,null,null,135,null,null,null,null,null,null,null,135,null,null,null,null,null,null,null,null,null,null,null,null,null,null,null,135,null,null,null,null,null,null,null,null,null,null,null,null,null,null,null,null,null,null,24]
["ВАЛИК МАЛЯРНЫЙ ПОЛИАКРИЛ",null,null,null,null,null,null,null,null,null,null,null,null,null,null,null,null,null,null,null,null,null,null,9677510221,null,null,null,null,null,796,null,null,"шт",null,null,null,null,1,null,null,null,null,null,null,null,1,null,null,null,null,null,null,null,145,null,null,null,null,null,null,null,145,null,null,null,null,null,null,null,null,null,null,null,null,null,null,null,145,null,null,null,null,null,null,null,null,null,null,null,null,null,null,null,null,null,null,24]
["ПУШКА ТЕПЛОВАЯ",null,null,null,null,null,null,null,null,null,null,null,null,null,null,null,null,null,null,null,null,null,null,3468550155,null,null,null,null,null,796,null,null,"шт",null,null,null,null,1,null,null,null,null,null,null,null,1,null,null,null,null,null,null,null,4490,null,null,null,null,null,null,null,4490,null,null,null,null,null,null,null,null,null,null,null,null,null,null,null,4490,null,null,null,null,null,null,null,null,null,null,null,null,null,null,null,null,null,null,27]
["ПАСТА КОЛЕРОВОЧНАЯ УНИВЕРСАЛЬНАЯ",null,null,null,null,null,null,null,null,null,null,null,null,null,null,null,null,null,null,null,null,null,null,2322900071,null,null,null,null,null,796,null,null,"шт",null,null,null,null,4,null,null,null,null,null,null,null,4,null,null,null,null,null,null,null,40,null,null,null,null,null,null,null,160,null,null,null,null,null,null,null,null,null,null,null,null,null,null,null,160,null,null,null,null,null,null,null,null,null,null,null,null,null,null,null,null,null,null,28]
["СЕТКА МОСКИТНАЯ",null,null,null,null,null,null,null,null,null,null,null,null,null,null,null,null,null,null,null,null,null,null,2282800088,null,null,null,null,null,796,null,null,"шт",null,null,null,null,2,null,null,null,null,null,null,null,2,null,null,null,null,null,null,null,300,null,null,null,null,null,null,null,600,null,null,null,null,null,null,null,null,null,null,null,null,null,null,null,600,null,null,null,null,null,null,null,null,null,null,null,null,null,null,null,null,null,null,28]
["МУФТА ПОЛИПРОПИЛЕНОВАЯ СОЕДИНИТЕЛЬНАЯ",null,null,null,null,null,null,null,null,null,null,null,null,null,null,null,null,null,null,null,null,null,null,2248120313,null,null,null,null,null,796,null,null,"шт",null,null,null,null,6,null,null,null,null,null,null,null,6,null,null,null,null,null,null,null,9,null,null,null,null,null,null,null,54,null,null,null,null,null,null,null,null,null,null,null,null,null,null,null,54,null,null,null,null,null,null,null,null,null,null,null,null,null,null,null,null,null,null,30]
[]
[]
[]
[]
[]
[]
[]
[]
[]
[]
[]
[]
[]
[]
[]
[]
[]
[]
[]
[]
[]
[null,null,null,null,null,null,null,null,null,null,null,null,null,null,null,null,null,null,null,null,null,null,null,null,null,null,null,null,null,null,null,null,null,null,null,null,null,"Итого",null,null,null,null,null,null,null,{"$f":"SUM(AT21:BA94)","v":964.82},null,null,null,null,null,null,null,"X",null,null,null,null,null,null,null,{"$f":"SUM(BJ21:BQ94)","v":22000.400000000001},null,null,null,null,null,null,null,null,null,null,null,null,null,null,null,{"$f":"SUM(BZ21:CG94)","v":22000.400000000001}]
[]
["Принял",null,null,null,null,"Начальник участка",null,null,null,null,null,null,null,null,null,null,null,null,null,null,null,null,null,null,null,null,null,null,null,null,null,null,null,null,null,null,null,null,null,null,null,null,null,null,null,null,null,null,"Сдал"]
[null,null,null,null,null,"(должность)",null,null,null,null,null,null,null,null,null,null,"(подпись)",null,null,null,null,null,null,null,null,null,null,null,"(расшифровка подписи)",null,null,null,null,null,null,null,null,null,null,null,null,null,null,null,null,null,null,null,null,null,null,null,null,null,null,null,null,null,null,null,null,"(должность)",null,null,null,null,null,null,null,null,null,null,"(подпись)",null,null,null,null,null,null,null,"(расшифровка подписи)"]

{"sheet":"_Config_","index":2,"n_rows":4,"n_cols":62,"rows_kept":4,"cut":false,"hidden":true,"merged":[]}
[3,1.07,null,false,true,"Разбивка приходный.xlsx","Пользователь Windows"]
["Новая2",null,true,false,2,null,null,false,0,0,null,null,null,null,null,null,null,null,null,null,null,null,null,null,null,null,null,null,null,null,null,null,null,null,null,null,null,false,null,null,1,null,null,1,false,false,null,null,null,null,null,"Запрос1",false,"ОШИБКА\r\nТаблицы выборки не заданы",null,null,null,null,null,null,true,";;;;;;;True;;;;;;;;;;;;;;;;;;;;;;"]
["Новая3",null,true,false,3,null,null,false,0,0,null,null,null,null,null,null,null,null,null,null,null,null,null,null,null,null,null,null,null,null,null,null,null,null,null,null,null,null,null,null,1,null,null,1,null,null,null,null,null,null,null,"Запрос1",false,"ОШИБКА\r\nТаблицы выборки не заданы",null,null,null,null,null,null,true,";;;;;;;True;;;;;;;;;;;;;;;;;;;;;;"]
[null,null,null,null,null,null,null,null,null,null,null,null,null,null,null,null,null,null,null,null,null,null,null,null,null,null,null,null,null,null,null,null,null,null,null,null,null,null,null,null,null,null,null,null,null,null,null,null,null,null,null,null,null,null,null,null,null,null,null,null,null,";;;;;;;True;;;;;;;;;;;;;;;;;;;;;;"]

{"sheet":"_Names_","index":3,"n_rows":2,"n_cols":2,"rows_kept":2,"cut":false,"hidden":true,"merged":[]}
["ПКО!Print_Titles","ПКО!$16:$19"]
["ПРИХОД за месяц'!Print_Titles","ПРИХОД за месяц'!$16:$20"]